Cogmind - Beta 15 @@@ ROGUE MODE // 2025.06.21 @ 08:04:31 Player: Fleshy Vegetable Bird Result: Destroyed by Z2-7QU(R) with Subdweller Beam Cannon Performance ------------- Evolutions (0) 0 Regions Visited (2) 400 Robots Destroyed (20) 100 Value Destroyed (440) 440 Prototype IDs (11) 220 Alien Tech Used (0) 0 Bonus (0) 0 TOTAL SCORE: 1160 Bonus ------- None Cogmind --------- Core Integrity 0/250 Matter 235/300 Energy 142/200 System Corruption 2% Temperature Cool (9) Movement Rolling (107) Ox1 Location -10/Subcaves Parts ------- > --- POWER (1) -------- Subdweller Power Source > --- PROPULSION (2) --- Wheel Subdweller Monowheel > --- UTILITY (2) ------ Small Storage Unit High-capacity Storage Unit > --- WEAPON (2) ------- Medium Laser Battle Rifle > --- INVENTORY (20) --- Subdweller Power Source Subdweller Monowheel Subdweller Monowheel Subdweller Monowheel Subdweller Optics Gun Armor Cobbler Unit Small Laser Small Laser Light Assault Rifle Subdweller Machine Gun Subdweller Machine Gun Subdweller Machine Gun Makeshift Spear Peak State ------------ > --- POWER ------------ Subdweller Power Source > --- PROPULSION ------- Wheel Subdweller Monowheel > --- UTILITY ---------- High-capacity Storage Unit Seismic Detector > --- WEAPON ----------- Medium Laser Battle Rifle > --- INVENTORY -------- Subdweller Power Source Subdweller Monowheel Subdweller Monowheel Small Storage Unit Subdweller Optics Gun Armor Cobbler Unit Small Laser Small Laser Light Assault Rifle Subdweller Machine Gun Subdweller Machine Gun Makeshift Spear [Rating: 13] Favorites ----------- Power Ion Engine Engine Ion Engine Propulsion Wheel Wheel Wheel Utility Seismic Detector Device Seismic Detector Storage High-capacity Storage Unit Weapon Grenade Launcher Energy Gun Medium Laser Ballistic Gun Light Assault Rifle Launcher Grenade Launcher Special Weapon Mining Laser Build | -11 -10 -10 ------- Run | Yrd Mat Sub Slots Evolved . | . . . Power . | . . . Propulsion . | . . . Utility . | . . . Weapon . | . . . Parts Attached 23 | 8 10 5 Power 5 | 1 3 1 Engine 5 | 1 3 1 Core . | . . . Reactor . | . . . Propulsion 8 | 3 4 1 Treads . | . . . Leg . | . . . Wheel 8 | 3 4 1 Hover . | . . . Flight . | . . . Utility 3 | 2 1 . Device 1 | 1 . . Storage 2 | 1 1 . Processor . | . . . Hackware . | . . . Protection . | . . . Artifact . | . . . Weapon 7 | 2 2 3 Energy Gun 2 | 1 1 . Energy Cannon . | . . . Ballistic Gun 3 | 1 1 1 Ballistic Cannon . | . . . Launcher 1 | . . 1 Special Weapon 1 | . . 1 Impact Weapon . | . . . Slashing Weapon . | . . . Piercing Weapon . | . . . Special Melee Weapon . | . . . Unidentified Prototypes . | . . . Parts Lost 11 | . 6 5 Power 3 | . 2 1 Propulsion 3 | . 2 1 Utility 1 | . . 1 Weapon 4 | . 2 2 Highest Loss Streak 4 | . 4 2 To Critical Strikes 1 | . 1 . Average Backups 8 | 2 4 12 Power 1 | . . 1 Propulsion . | . . . Utility 2 | . . 3 Weapon 4 | 1 2 6 Tool/Special . | . . . Unused Backups 14 | 1 . 13 Power 1 | . . 1 Propulsion 4 | 1 . 3 Utility 3 | . . 3 Weapon 6 | . . 6 Tool/Special . | . . . Average Slot Usage (%) 95 | . 95 95 Engine 13 | . 13 14 Wheel 27 | . 26 27 Device 13 | . 14 13 Storage 14 | . 14 14 Energy Gun 6 | . 11 4 Ballistic Gun 6 | . 13 2 Launcher 8 | . . 12 Special Weapon 2 | . . 4 Peak Build Rating 13 | 7 7 13 Average Rating 8 | 6 6 9 On Entrance 4 | . 7 7 Naked Turns . | . . . Heaviest Build 51 | 12 49 51 Greatest Support 30 | 26 20 30 Greatest Overweight (x) 5 | 1 4 5 Average Overweight (x) 2 | . 2 3 Largest Inventory Capacity 20 | 8 20 20 Average Capacity 18 | 7 19 20 Most Carried 18 | 5 6 18 Average Carried 9 | 2 4 13 Final Capacity 20 | 8 20 20 Final Carried 15 | 4 5 15 Class Distribution -------------------- 77% | Mutant 22% | Scavenger-Mutant Dominant Class ---------------- Mutant | -10/Materials Mutant | -10/Subcaves Resources | -11 -10 -10 ----------- Run | Yrd Mat Sub Matter Collected 555 | 294 127 134 Remotely . | . . . Salvage Created 549 | 162 239 148 Parts 45 | 11 20 14 Haulers Intercepted . | . . . Recyclers Shooed . | . . . Parts Field Recycled . | . . . Retrieved Matter . | . . . Parts Self-Destructed 10 | . . 10 Prevented . | . . . Kills | -11 -10 -10 ------- Run | Yrd Mat Sub Combat Hostiles Destroyed 14 | . 9 5 Guns 10 | . 8 2 AOE 3 | . . 3 Classes Destroyed 6 | 2 2 2 Tunneler 5 | 5 . . Recycler 1 | 1 . . Swarmer 5 | . 5 . Grunt 4 | . 4 . Cobbler 1 | . . 1 Subdweller 5 | . . 5 Best Kill Streak 4 | 4 3 3 Combat Bots Only 3 | . 3 3 Max Kills in Single Turn 1 | 1 1 1 Gunslinging . | . . . Exploded 1 | . . 1 Melee . | . . . Uniques/NPCs Destroyed . | . . . Combat | -11 -10 -10 -------- Run | Yrd Mat Sub Hostile Shots Fired 88 | . 75 13 Missed 20 | . 16 4 Hits 68 | . 59 9 Projectile 68 | . 59 9 Critical Strikes 1 | . 1 . Damage Taken 983 | . 585 398 Core 260 | . 149 111 Absorbed by Shields . | . . . Core Remaining (%) 100 | 100 . . Volleys Fired 91 | 26 34 31 Largest 2 | 2 2 2 Hottest 100 | 70 70 100 Shots Fired 147 | 52 57 38 Gun 131 | 52 57 22 Cannon . | . . . Launcher 10 | . . 10 Special 6 | . . 6 Kinetic 61 | 26 30 5 Thermal 76 | 26 27 23 Explosive 10 | . . 10 Electromagnetic . | . . . Robot Hit Streak 18 | 7 10 18 Robot Miss Streak 3 | 3 2 1 Penetration Max . | . . . Secondary Targets . | . . . Shots Hit Robots 86 | 27 37 22 Core Hits 36 | 11 14 11 Critical Kills . | . . . Critical Parts Destroyed . | . . . Critical Strikes 5 | 2 3 . Burn 5 | 2 3 . Melee Attacks . | . . . Impact . | . . . Slashing . | . . . Piercing . | . . . Sneak Attacks . | . . . Combat Hostiles . | . . . Follow-up Attacks . | . . . Damage Inflicted 1331 | 299 412 620 Guns 948 | 299 412 237 Cannons . | . . . Explosions 383 | . . 383 Melee . | . . . Ramming . | . . . Kinetic 279 | 88 143 48 Thermal 669 | 211 269 189 Explosive 383 | . . 383 Electromagnetic . | . . . Impact . | . . . Slashing . | . . . Piercing . | . . . Highest Corruption 2 | . 2 2 Average Corruption 2 | . 2 2 Corruption Purged . | . . . Corruption Blocked . | . . . Effects 17 | . 9 8 Message Errors 5 | . 4 1 Matter Fused 3 | . . 3 Heat Flow Errors 2 | . 1 1 Energy Discharges 1 | . 1 . Data Loss (minor) 2 | . . 2 Data Loss (major) 2 | . 1 1 Misfires 1 | . 1 . Alerts 1 | . 1 . Overload Shots . | . . . Overflow Damage 23 | . . 23 Projectiles . | . . . Explosions 23 | . . 23 Melee . | . . . Knockbacks . | . . . Impact . | . . . Kinetic . | . . . Secondary . | . . . Self-Inflicted Damage 73 | . . 73 Shots 4 | . . 4 Rammed . | . . . Targets Rammed . | . . . Kicked . | . . . Crushed . | . . . Highest Temperature 188 | 40 188 92 Average Temperature 45 | 20 61 35 Received Heat Transfer 249 | . 189 60 Siege Activations . | . . . Martial Activations . | . . . Shielding Activations . | . . . Robots Disrupted . | . . . Combat Hostiles . | . . . Robots Corrupted . | . . . Combat Hostiles . | . . . Parts Fried . | . . . Impact Corruptions . | . . . Robots Melted 1 | . 1 . Combat Hostiles 1 | . 1 . Parts Melted 2 | 2 . . Heat Transferred 2331 | 777 999 555 Parts Sabotaged . | . . . Parts Stolen . | . . . Parts Stripped . | . . . Power Chain Reactions . | . . . Alert | -11 -10 -10 ------- Run | Yrd Mat Sub Maximum Alert Level . | . . . Low Security (%) 100 | 100 100 . Level 1 . | . . . Level 2 . | . . . Level 3 . | . . . Level 4 . | . . . Level 5 . | . . . High Security . | . . . Max Security . | . . . Peak Influence 60 | 10 60 . Initial . | . . . Average 18 | 1 23 . Influence Increases 267 | 30 237 . Destroy 0b10 Robot/C 180 | . 180 . Destroy 0b10 Robot/NC 30 | 30 . . Destroy Leader 30 | . 30 . Successful Hack 27 | . 27 . Influence Decreases 267 | 30 237 . Time Decay 210 | 30 180 . Lost Part 57 | . 57 . Squads Dispatched 1 | . 1 . Investigation . | . . . Extermination . | . . . Reinforcement 1 | . 1 . Assault . | . . . Garrison . | . . . Intercept . | . . . Searches Triggered . | . . . Construction Impeded . | . . . Haulers Reinforced . | . . . Active Scanning Responses . | . . . Cargo Convoy Interrupts . | . . . Stealth | -11 -10 -10 --------- Run | Yrd Mat Sub Distress Signals 2 | . 2 . Communications Jammed . | . . . Distress Signals . | . . . Times Spotted 20 | . 13 7 Peak Tracking Total 6 | . 6 2 Tactical Retreats . | . . . Traps | -11 -10 -10 ------- Run | Yrd Mat Sub Traps Triggered 4 | . 2 2 Indirectly . | . . . Trap Hack Attempts . | . . . Triggered . | . . . Disarmed . | . . . Reprogrammed . | . . . Reused 1 | . . 1 Traps Extracted . | . . . Installed 1 | . . 1 Triggered . | . . . Most Traps Carried 1 | . . 1 Machines | -11 -10 -10 ---------- Run | Yrd Mat Sub Machines Disabled 1 | . . 1 Max in Single Turn 1 | . . 1 Machines Repaired . | . . . Machines Dismantled . | . . . Machines Sabotaged . | . . . Overloaded Fab Kills . | . . . Hacking | -11 -10 -10 --------- Run | Yrd Mat Sub Machines Accessed 4 | . 3 1 Terminals 3 | . 3 . Fabricators . | . . . Repair Stations . | . . . Recycling Units . | . . . Scanalyzers . | . . . Garrison Access . | . . . Total Hacks 9 | . 8 1 Successful 7 | . 6 1 Failed 2 | . 2 . Catastrophic . | . . . Database Lockouts . | . . . Manual 8 | . 8 . Terminals 8 | . 8 . Fabricators . | . . . Repair Stations . | . . . Recycling Units . | . . . Scanalyzers . | . . . Garrison Access . | . . . Terminal Hacks 3 | . 2 1 Robot Analysis 2 | . 2 . Proto ID Catalog 1 | . . 1 Fabricator Hacks . | . . . Repair Station Hacks . | . . . Recycling Unit Hacks . | . . . Scanalyzer . | . . . Garrison Access Hacks . | . . . Unauthorized Hacks 4 | . 4 . Terminals 4 | . 4 . Track 1 | . 1 . Botnet 3 | . 3 . Fabricators . | . . . Repair Stations . | . . . Recycling Units . | . . . Scanalyzers . | . . . Garrison Access . | . . . Data Cores Recovered . | . . . Used . | . . . Hacking Detections 3 | . 3 . Full Trace Events . | . . . Feedback Events . | . . . Feedback Blocked . | . . . Robot Schematics Acquired . | . . . Robots Built . | . . . Authchips . | . . . Time . | . . . Total Robot Build Rating . | . . . Part Schematics Acquired . | . . . Parts Built . | . . . Authchips . | . . . Time . | . . . Total Part Build Rating . | . . . Parts Repaired . | . . . Time . | . . . Parts Recycled . | . . . Recycled Matter . | . . . Retrieved Matter . | . . . Retrieved Components . | . . . Parts Scanalyzed . | . . . Part Schematics Acquired . | . . . Parts Damaged . | . . . Bothacking | -11 -10 -10 ------------ Run | Yrd Mat Sub Used RIF Installer . | . . . Robots Hacked . | . . . Non-combat . | . . . Combat . | . . . Robot Hacks Applied . | . . . Relay Couplers Released . | . . . Fabnet Peak Effective % . | . . . Robots Rewired . | . . . Allies Hacked . | . . . Hacks Repelled . | . . . Allies | -11 -10 -10 -------- Run | Yrd Mat Sub Total Allies . | . . . Largest Group . | . . . Highest-Rated Group . | . . . Highest-Rated Ally . | . . . Total Orders . | . . . Ally Attacks . | . . . Total Damage . | . . . Kills . | . . . Allies Corrupted . | . . . Allies Melted . | . . . Intel | -11 -10 -10 ------- Run | Yrd Mat Sub Active Infowar (turns) 1394 | . 476 918 Seismic 1394 | . 476 918 Robot Analysis Total 2 | . 2 . Derelict Logs Recovered 2 | . . 2 Drone Launches . | . . . Drone Recoveries . | . . . Exploration | -11 -10 -10 ------------- Run | Yrd Mat Sub Turns Passed 1573 | 167 482 924 Spaces Moved 811 | 88 241 482 Core 1 | 1 . . Treads . | . . . Legs . | . . . Wheels 810 | 87 241 482 Hover . | . . . Flight . | . . . Fastest Speed 50 | 50 80 107 Average Speed 125 | 85 110 139 Slowest Speed 155 | 100 140 155 Overloaded Moves . | . . . Propulsion Burnouts . | . . . Robots Hopped . | . . . Potential Cave-ins . | . . . Cave-ins Triggered . | . . . Exploration Rate (%) 26 | 4 45 31 Regions Visited 2 Branch Regions 1 Pre-discovered Areas 1 | . . 1 Known Exits Taken . | . . . Unknown Exits Taken 2 | 1 1 . Scrap Searched . | . . . Spaces Dug 6 | . . 6 Terrain Destroyed 35 | . . 35 Melee . | . . . Projectile . | . . . AOE 35 | . . 35 Terrain Rammed . | . . . Walls Destroyed . | . . . Machines Disabled . | . . . Actions | -11 -10 -10 --------- Run | Yrd Mat Sub Total 1215 | 130 402 683 Wait 257 | . 112 145 Move 809 | 87 240 482 Hop . | . . . Pick Up 23 | 6 3 14 Fast Attach 14 | 8 5 1 Attach 7 | . 3 4 Detach . | . . . Swap 7 | . 3 4 Drop 6 | 3 2 1 Fire 91 | 26 34 31 Melee . | . . . Ram . | . . . Kick . | . . . Crush . | . . . Escape Stasis . | . . . Rewire . | . . . Trap 1 | . . 1 Miscellaneous . | . . . Route ------- -11/Scrapyard -10/Materials (discovered 4 exits: [*Mat x2] / [*Min] / *Sub) -10/Subcaves (discovered 1 exit: [*Mat]) History --------- Turn | Location | Event 16 | -11/Scrapyard | Discovered new exit (range 16) 168 | -11/Scrapyard | Entered Materials 302 | -10/Materials | Build established: Mutant 314 | -10/Materials | Discovered new exit (range 4) 365 | -10/Materials | Core integrity fell below 50% 395 | -10/Materials | Discovered new exit (range 13) 417 | -10/Materials | Lost 4 parts (2n2w) 510 | -10/Materials | Discovered new exit (range 12) 608 | -10/Materials | Discovered new exit (range 5) 650 | -10/Materials | Entered Subcaves 650 | -10/Subcaves | Discovered new exit (range 13) 685 | -10/Subcaves | Ambushed by Subdweller buried in earth 877 | -10/Subcaves | Visited 4L-MR0's lab 893 | -10/Subcaves | Found Gun Armor 1109 | -10/Subcaves | Shifting Twisted Machinery released Sub. Machine Gun 1110 | -10/Subcaves | Shifting Twisted Machinery released Shrapnel Trap 1438 | -10/Subcaves | Shifting Twisted Machinery released Mak. Spear 1445 | -10/Subcaves | Shifting Twisted Machinery released Sub. Monowheel 1524 | -10/Subcaves | Core integrity fell below 20% 1560 | -10/Subcaves | Ambushed by Subdwellers from Twisted Machinery 1562 | -10/Subcaves | Learned location of 1 exit from Materials 1574 | -10/Subcaves | Destroyed by Z2-7QU(R) with Subdweller Beam Cannon Last Messages --------------- 01487_ Acquired Mak. Spear. 01520_ System corrupted: Component data lost. 01520_ Dropped Shrapnel Trap. 01521_ Ion Engine destroyed. 01521_ Installed Shrapnel Trap. 01523_ Grenade Launcher destroyed. 01529_ R3-ZBR(R) destroyed. 01531_ Subatomizers dissect the Disposable Heat Sink. 01535_ Acquired Sub. Machine Gun. 01536_ Acquired 20 matter. 01538_ Acquired Sub. Monowheel. 01541_ Subatomizers dissect the Disposable Heat Sink. 01544_ Acquired 30 matter. 01560_ Z2-7QU(R) emerges from the Twisted Machinery. 01562_ Acquired derelict log, extracted data. Data stored: Materials exits (x1). 01568_ Seismic Detector destroyed. Map ----- +----------------------------------------------------+ | ?????????????????????? "###" " ##????????? | | ??????????????????????????#" """" ##???????? | | ?????????????????????????#""# #???????? | | ?????????????????????????## ## #???????? | | ??????????????????????????# "" ##???????? | | ??????????????????????????# ####""" ##????????? | | ??????????????????????????#######"" ##?????????? | | ???????????????????????????# """" " #??????????? | | ??????????????????????????# """ " ##?????????? | | ????????????????????????????"## #?????????? | | ??????????????????????????????#" ####?????????? | | ??????????????????????????????#" "##????????????? | | ?????????????????????? ???????#" !" #????????????? | | ?????????????????????# ?????##" &&##????????????? | | ?????????????????????# ###??#" & &##???????????? | | ????????????????????? #### && "#???????????? | | ?????????????????????# ###" ##???????????? | | ??????????????????????# #### ##????????????? | | ?????????????????????????# # ##????????????? | | ?????????????????? #####?# #????????????? | | ??????????????????? ## ## #????????????? | | ??????????????????????# ## ##????????????? | | ??????????????????????#" ##???????????? | | ???????????????????????# #???????????? | | ?????????????????"""##### ## #???????????? | | ????????????????? """" ;@ ### #??????????? | | ?????????????? """"R ##?? #????????? | | ?????????????? "" ##??? #????????? | | ?????????????? ""R##### ##????# #????????? | | ????????????????? ??????### ##?????? #????????? | | ??????????????????????????###???????# ##????????? | | ?????????????????????????????????????###?????????? | | ?????????????????????????????????????????????????? | | ?????????????????????????????????????????????????? | | ?????????????????????????????????????????????????? | | ?????????????????????????????????????????????????? | | ?????????????????????????????????????????????????? | | ?????????????????????????????????????????????????? | | ?????????????????????????????????????????????????? | | ?????????????????????????????????????????????????? | | ?????????????????????????????????????????????????? | | ?????????????????????????????????????????????????? | | ?????????????????????????????????????????????????? | | ?????????????????????????????????????????????????? | | ?????????????????????????????????????????????????? | | ?????????????????????????????????????????????????? | | | | | | | | | +----------------------------------------------------+ Best States ------------- Heat Dissipation 25 Energy Generation 10 Energy Capacity 250 Matter Stores 300 Matter Capacity 300 Sight Range 16 Terrain Scan Density 10 Evasion (%) 44 Item Schematics ----------------- None Robot Schematics ------------------ None Fabricated ------------ Nothing Repaired ---------- Nothing Alien Tech Used ----------------- None Achievements -------------- None Challenges ------------ None Game ------ Seed AnalysisConstructMace Manual? 0 Play Time 00:11:31 Cumulative 388.4 hours Start 2025.06.21 @ 07:54:00 End 2025.06.21 @ 08:04:31 Sessions 1 Manual Loads 0 Difficulty Rogue Special Mode None Game No. 433 Rogue 433 Adventurer 0 Explorer 0 Win Type - Total 6 Types 3/1/1/1/0/0/0/0/0/0 Lore% 73 Gallery% 71 Achievement% 68 Wizard Run 0 Options --------- Layout 1 ASCII 0 Keyboard 0 Movement Numpad Keybinds 0 Fullscreen 1 Font 32/SmallcapsGlow Map View 50x35 Zoom Use 0% Tactical HUD 1 Map Filters NONE Filters NONE Steam 1 RUN: f2c8b1fc-5de1-4943-860c-99a7be9bea6b